lending/lending_fUSD_20240507
["ID","MTS","AMOUNT","RATE_DAILY","PERIOD"]
[326562321,1715109079358,-500.0,0.00020547,2]
[326562322,1715109079369,-500.0,0.00020547,2]
[326562323,1715109079379,-500.0,0.00020547,2]
[326562324,1715109079389,-1016.39,0.00020547,2]
[326562325,1715109079398,-500.0,0.00020547,2]
[326562326,1715109079408,-500.0,0.00020547,2]
[326562327,1715109079418,-3365.77,0.00020547,2]
[326562328,1715109079427,-839.24,0.00020547,2]
[326562329,1715109079438,-17937.6,0.00020547,2]
[326562330,1715109079449,-500.0,0.00020547,2]
[326562331,1715109079459,-1219.46,0.00020547,2]
[326562332,1715109079468,-500.0,0.00020547,2]
[326562333,1715109079478,-500.0,0.00020547,2]
[326562334,1715109079488,-500.0,0.00020547,2]
[326562335,1715109079497,-1074.92,0.00020547,2]
[326562336,1715109079507,-767.65,0.00020547,2]
[326562337,1715109079518,-500.0,0.00020547,2]
[326562338,1715109079527,-3466.46,0.00020547,2]
[326562339,1715109079538,-500.0,0.00020547,2]
[326562340,1715109079548,-1717.75,0.00020547,2]
[326562341,1715109079558,-500.0,0.00020547,2]
[326562342,1715109079568,-500.0,0.00020547,2]
[326562343,1715109079578,-835.03,0.00020547,2]
[326562344,1715109079588,-1168.98,0.00020547,2]
[326562345,1715109079599,-500.0,0.00020547,2]
[326562346,1715109079615,-500.0,0.00020547,2]
[326562347,1715109079625,-946.47,0.00020547,2]
[326562348,1715109079635,-3939.72,0.00020547,2]
[326562349,1715109079645,-622.4,0.00020547,2]
[326562350,1715109079656,-9068.98,0.00020547,2]
[326562351,1715109079666,-2099.47,0.00020547,2]
[326562352,1715109079675,-660.56,0.00020547,2]
[326562353,1715109079686,-975.09,0.00020547,2]
[326562354,1715109079696,-7823.11,0.00020547,2]
[326562355,1715109079707,-3638.35,0.00020547,2]
[326562356,1715109079716,-2517.85,0.00020547,2]
[326562357,1715109079726,-3443.28,0.00020547,2]
[326562358,1715109079736,-500.0,0.00020547,2]
[326562359,1715109079746,-500.0,0.00020547,2]
[326562360,1715109079756,-626.56,0.00020547,2]
[326562361,1715109079766,-500.0,0.00020547,2]
[326562362,1715109079776,-500.0,0.00020547,2]
[326562363,1715109079786,-500.0,0.00020547,2]
[326562364,1715109079796,-544.82,0.00020547,2]
[326562365,1715109079807,-500.0,0.00020547,2]
[326562366,1715109079817,-862.97,0.00020547,2]
[326562367,1715109079827,-1652.38,0.00020547,2]
[326562368,1715109079837,-2159.29,0.00020547,2]
[326562369,1715109079846,-255.04616201,0.00020547,2]
[326562370,1715109079857,-669.45,0.00020547,2]
[326562371,1715109079867,-1098.34,0.00020547,2]
[326562372,1715109079877,-500.0,0.00020547,2]
[326562373,1715109079887,-500.0,0.00020547,2]
[326562374,1715109079897,-500.0,0.00020547,2]
[326562375,1715109079907,-541.77,0.00020547,2]
[326562376,1715109079918,-500.0,0.00020547,2]
[326562377,1715109079928,-558.7,0.00020547,2]
[326562378,1715109079938,-640.04,0.00020547,2]
[326562379,1715109080127,-626.2,0.00020547,2]
[326562380,1715109080137,-848.65,0.00020547,2]
[326562381,1715109080147,-1005.88,0.00020547,2]
[326562382,1715109080156,-13278.13,0.00020547,2]
[326562383,1715109080165,-500.0,0.00020547,2]
[326562384,1715109080175,-500.0,0.00020547,2]
[326562385,1715109080184,-500.0,0.00020547,2]
[326562386,1715109080194,-500.0,0.00020547,2]
[326562387,1715109080203,-731.11,0.00020547,2]
[326562388,1715109080212,-1307.7,0.00020547,2]
[326562389,1715109080221,-783.4,0.00020547,2]
[326562390,1715109080230,-593.67,0.00020547,2]
[326562391,1715109080239,-3016.05,0.00020547,2]
[326562392,1715109080248,-500.0,0.00020547,2]
[326562393,1715109080257,-20174.99,0.00020547,2]
[326562394,1715109080268,-858.71,0.00020547,2]
[326562395,1715109080277,-811.78,0.00020547,2]
[326562396,1715109080286,-500.0,0.00020547,2]
[326562397,1715109080295,-500.0,0.00020547,2]
[326562398,1715109080304,-2207.78,0.00020547,2]
[326562399,1715109080313,-581.24,0.00020547,2]
[326562400,1715109080323,-775.24,0.00020547,2]
[326562401,1715109080333,-319.76421793,0.00020547,2]
[326562402,1715109080342,-681.51,0.00020547,2]
[326562403,1715109080351,-500.0,0.00020547,2]
[326562404,1715109080360,-500.0,0.00020547,2]
[326562405,1715109080370,-1322.4,0.00020547,2]
[326562406,1715109080379,-500.0,0.00020547,2]
[326562407,1715109080388,-1309.95,0.00020547,2]
[326562408,1715109080397,-500.0,0.00020547,2]
[326562409,1715109080406,-500.0,0.00020547,2]
[326562410,1715109080416,-1656.54,0.00020547,2]
[326562411,1715109080425,-913.41,0.00020547,2]
[326562412,1715109080435,-495.82134034,0.00020547,2]
[326562413,1715109080444,-500.0,0.00020547,2]
[326562414,1715109080454,-2525.7,0.00020547,2]
[326562415,1715109080464,-1016.48,0.00020547,2]
[326562416,1715109080474,-500.0,0.00020547,2]
[326562417,1715109080484,-500.0,0.00020547,2]
[326562418,1715109080493,-590.94,0.00020547,2]
[326562419,1715109080502,-2176.15,0.00020547,2]
[326562420,1715109080513,-1488.9,0.00020547,2]
[326562421,1715109080522,-1089.01,0.00020547,2]
[326562422,1715109080531,-500.0,0.00020547,2]
[326562423,1715109080541,-934.18,0.00020547,2]
[326562424,1715109080550,-500.0,0.00020547,2]
[326562425,1715109080559,-1223.92,0.00020547,2]
[326562426,1715109080569,-589.37,0.00020547,2]
[326562427,1715109080578,-702.3,0.00020547,2]
[326562428,1715109080588,-500.0,0.00020547,2]
[326562429,1715109080598,-1123.02,0.00020547,2]
[326562430,1715109080613,-500.0,0.00020547,2]
[326562431,1715109080623,-500.0,0.00020547,2]
[326562432,1715109080633,-500.0,0.00020547,2]
[326562433,1715109080642,-1456.17,0.00020547,2]
[326562434,1715109080653,-1023.26,0.00020547,2]
[326562435,1715109080662,-1294.89,0.00020547,2]
[326562436,1715109080671,-2029.34,0.00020547,2]
[326562437,1715109080681,-500.0,0.00020547,2]
[326562438,1715109080692,-958.06,0.00020547,2]
[326562439,1715109080702,-3031.7,0.00020547,2]
[326562440,1715109080711,-500.0,0.00020547,2]
[326562441,1715109080720,-500.0,0.00020547,2]
[326562442,1715109080730,-1797.85,0.00020547,2]
[326562443,1715109080740,-500.0,0.00020547,2]
[326562444,1715109080749,-500.0,0.00020547,2]
[326562445,1715109080759,-500.0,0.00020547,2]
[326562446,1715109080770,-2598.21,0.00020547,2]
[326562447,1715109080781,-2329.42,0.00020547,2]
[326562448,1715109080791,-639.23,0.00020547,2]
[326562449,1715109080802,-1252.65,0.00020547,2]
[326562450,1715109080812,-867.36,0.00020547,2]
[326562451,1715109080822,-500.0,0.00020547,2]
[326562452,1715109080831,-1368.28,0.00020547,2]
[326562453,1715109080841,-1447.62,0.00020547,2]
[326562454,1715109080850,-1495.07,0.00020547,2]
[326562455,1715109080860,-2090.62,0.00020547,2]
[326562456,1715109080869,-1247.39,0.00020547,2]
[326562457,1715109080879,-500.0,0.00020547,2]
[326562458,1715109080888,-609.28,0.00020547,2]
[326562459,1715109080897,-500.0,0.00020547,2]
[326562460,1715109080907,-576.38,0.00020547,2]
[326562461,1715109080916,-1469.01,0.00020547,2]
[326562462,1715109080926,-4236.16,0.00020547,2]
[326562463,1715109080935,-500.0,0.00020547,2]
[326562464,1715109080946,-1443.45,0.00020547,2]
[326562465,1715109080955,-952.68,0.00020547,2]
[326562466,1715109080965,-500.0,0.00020547,2]
[326562467,1715109080974,-525.41,0.00020547,2]
[326562468,1715109080983,-4439.92,0.00020547,2]
[326562469,1715109080993,-4763.7,0.00020547,2]
[326562470,1715109081003,-690.08,0.00020547,2]
[326562471,1715109081012,-500.0,0.00020547,2]
[326562472,1715109081022,-2899.93,0.00020547,2]
[326562473,1715109081031,-3213.53,0.00020547,2]
[326562474,1715109081040,-2058.55,0.00020547,2]
[326562475,1715109081050,-500.0,0.00020547,2]
[326562476,1715109081059,-1807.87,0.00020547,2]
[326562477,1715109081069,-737.92,0.00020547,2]
[326562478,1715109081078,-1387.57,0.00020547,2]
[326562479,1715109081088,-919.82,0.00020547,2]
[326562480,1715109081098,-2336.73,0.00020547,2]
[326562481,1715109081107,-3045.65,0.00020547,2]
[326562482,1715109081117,-1092.73,0.00020547,2]
[326562483,1715109081126,-1691.25,0.00020547,2]
[326562484,1715109081136,-1026.13,0.00020547,2]
[326562485,1715109081145,-543.72,0.00020547,2]
[326562486,1715109081155,-2744.29,0.00020547,2]
[326562487,1715109081164,-1345.09,0.00020547,2]
[326562488,1715109081174,-3663.09,0.00020547,2]
[326562489,1715109081183,-920.02,0.00020547,2]
[326562490,1715109081193,-571.79,0.00020547,2]
[326562491,1715109081202,-554.62,0.00020547,2]
[326562492,1715109081211,-2041.82,0.00020547,2]
[326562493,1715109081221,-255.5,0.0002057,15]
[326562494,1715109081230,-150.5,0.0002058,15]
[326562495,1715109081239,-150.5,0.0002059,15]
[326562496,1715109081249,-182.0,0.0002077,15]
[326562497,1715109081258,-182.0,0.0002078,15]
[326562498,1715109081268,-182.0,0.0002079,15]
[326562499,1715109081277,-500.0,0.00020821,2]
[326562500,1715109081287,-500.0,0.00020821,2]
[326562501,1715109081296,-500.0,0.00020821,2]
[326562502,1715109081305,-500.0,0.00020821,2]
[326562503,1715109081315,-616.55,0.00020821,2]
[326562504,1715109081324,-609.92,0.00020821,2]
[326562505,1715109081333,-528.98,0.00020821,2]
[326562506,1715109081343,-637.67,0.00020821,2]
[326562507,1715109081353,-500.0,0.00020821,2]
[326562508,1715109081362,-961.86,0.00020821,2]
[326562509,1715109081372,-500.0,0.00020821,2]
[326562510,1715109081381,-516.31,0.00020821,2]
[326562511,1715109081391,-500.0,0.00020821,2]
[326562512,1715109081400,-500.0,0.00020821,2]
[326562513,1715109081409,-500.0,0.00020821,2]
[326562514,1715109081418,-500.0,0.00020821,2]
[326562515,1715109081428,-500.0,0.00020821,2]
[326562516,1715109081437,-500.0,0.00020821,2]
[326562517,1715109081446,-500.0,0.00020821,2]
[326562518,1715109081456,-500.0,0.00020821,2]
[326562519,1715109081465,-353.42035151,0.00020821,2]
[326562520,1715109081474,-500.0,0.00020821,2]
[326562521,1715109081483,-500.0,0.00020821,2]
[326562522,1715109081493,-500.0,0.00020821,2]
[326562523,1715109081502,-500.0,0.00020821,2]
[326562524,1715109081511,-500.0,0.00020821,2]
[326562525,1715109081521,-500.0,0.00020821,2]
[326562526,1715109081531,-500.0,0.00020821,2]
[326562527,1715109081540,-500.0,0.00020821,2]
[326562528,1715109081550,-500.0,0.00020821,2]
[326562529,1715109081559,-500.0,0.00020821,2]
[326562530,1715109081568,-500.0,0.00020821,2]
[326562531,1715109081578,-511.83,0.00020821,2]
[326562532,1715109081587,-640.82,0.00020821,2]
[326562533,1715109081597,-1296.96,0.00020821,2]
[326562534,1715109081609,-1039.89,0.00020821,2]
[326562535,1715109081619,-500.0,0.00020821,2]
[326562536,1715109081628,-1344.86,0.00020821,2]
[326562537,1715109081637,-510.16,0.00020821,2]
[326562538,1715109081647,-500.0,0.00020821,2]
[326562539,1715109081657,-500.0,0.00020821,2]
[326562540,1715109081666,-500.0,0.00020821,2]
[326562541,1715109081675,-1140.53,0.00020821,2]
[326562542,1715109081684,-500.0,0.00020821,2]
[326562543,1715109081696,-500.0,0.00020821,2]
[326562544,1715109081706,-548.18,0.00020821,2]
[326562545,1715109081716,-500.0,0.00020821,2]
[326562546,1715109081726,-909.34,0.00020821,2]
[326562547,1715109081735,-500.0,0.00020821,2]
[326562548,1715109081744,-500.0,0.00020821,2]
[326562549,1715109081754,-500.0,0.00020821,2]
[326562550,1715109081764,-587.62,0.00020821,2]
[326562551,1715109081774,-500.0,0.00020821,2]
[326562552,1715109081783,-500.0,0.00020821,2]
[326562553,1715109081791,-737.75,0.00020821,2]
[326562554,1715109081802,-500.0,0.00020821,2]
[326562555,1715109081812,-500.0,0.00020821,2]
[326562556,1715109081821,-500.0,0.00020821,2]
[326562557,1715109081830,-965.36,0.00020821,2]
[326562558,1715109081839,-500.0,0.00020821,2]
[326562559,1715109081849,-500.0,0.00020821,2]
[326562560,1715109081860,-500.0,0.00020821,2]
[326562561,1715109081870,-500.0,0.00020821,2]
[326562562,1715109081879,-500.0,0.00020821,2]
[326562563,1715109081888,-772.42,0.00020821,2]
[326562564,1715109081897,-1277.92,0.00020821,2]
[326562565,1715109081907,-500.0,0.00020821,2]
[326562566,1715109081916,-500.0,0.00020821,2]
[326562567,1715109081925,-854.42,0.00020821,2]
[326562568,1715109081935,-634.37,0.00020821,2]
[326562569,1715109081944,-518.82,0.00020821,2]
[326562570,1715109081953,-834.2,0.00020821,2]
[326562571,1715109081962,-178.1632748,0.00020821,2]
[326562572,1715109081972,-500.0,0.00020821,2]
[326562573,1715109081981,-500.0,0.00020821,2]
[326562574,1715109081991,-559.02,0.00020821,2]
[326562575,1715109082000,-500.0,0.00020821,2]
[326562576,1715109082009,-500.0,0.00020821,2]
[326562577,1715109082020,-1295.25,0.00020821,2]
[326562578,1715109082030,-1379.17,0.00020821,2]
[326562579,1715109082039,-500.0,0.00020821,2]
[326562580,1715109082049,-500.0,0.00020821,2]
[326562581,1715109082059,-756.88,0.00020821,2]
[326562582,1715109082070,-1051.91,0.00020821,2]
[326562583,1715109082080,-605.72,0.00020821,2]
[326562584,1715109082089,-500.0,0.00020821,2]
[326562585,1715109082098,-500.0,0.00020821,2]
[326562586,1715109082108,-1384.39,0.00020821,2]
[326562587,1715109082118,-500.0,0.00020821,2]
[326562588,1715109082127,-830.22,0.00020821,2]
[326562589,1715109082136,-500.0,0.00020821,2]
[326562590,1715109082145,-500.0,0.00020821,2]
[326562591,1715109082154,-504.54,0.00020821,2]
[326562592,1715109082164,-675.32,0.00020821,2]
[326562593,1715109082174,-849.26,0.00020821,2]
[326562594,1715109082183,-964.69,0.00020821,2]
[326562595,1715109082192,-407.54183578,0.00020821,2]
[326562596,1715109082202,-500.0,0.00020821,2]
[326562597,1715109082211,-775.4,0.00020821,2]
[326562598,1715109082221,-500.0,0.00020821,2]
[326562599,1715109082230,-642.62,0.00020821,2]
[326562600,1715109082240,-500.0,0.00020821,2]
[326562601,1715109082249,-1511.31,0.00020821,2]
[326562602,1715109082259,-500.0,0.00020821,2]
[326562603,1715109082268,-777.92,0.00020821,2]
[326562604,1715109082278,-1094.98,0.00020821,2]
[326562605,1715109082288,-751.54,0.00020821,2]
[326562606,1715109082297,-500.0,0.00020821,2]
[326562607,1715109082307,-500.0,0.00020821,2]
[326562608,1715109082316,-529.2,0.00020821,2]
[326562609,1715109082326,-824.9,0.00020821,2]
[326562610,1715109082335,-500.0,0.00020821,2]
[326562611,1715109082344,-500.0,0.00020821,2]
[326562612,1715109082354,-500.0,0.00020821,2]
[326562613,1715109082363,-740.96,0.00020821,2]
[326562614,1715109082373,-1194.81,0.00020821,2]
[326562615,1715109082382,-500.0,0.00020821,2]
[326562616,1715109082456,-500.0,0.00020821,2]
[326562617,1715109082465,-665.48,0.00020821,2]
[326562618,1715109082474,-500.0,0.00020821,2]
[326562619,1715109082484,-712.08,0.00020821,2]
[326562620,1715109082493,-500.0,0.00020821,2]
[326562621,1715109082502,-1308.28,0.00020821,2]
[326562622,1715109082511,-500.0,0.00020821,2]
[326562623,1715109082521,-531.86,0.00020821,2]
[326562624,1715109082531,-661.12,0.00020821,2]
[326562625,1715109082540,-500.0,0.00020821,2]
[326562626,1715109082549,-500.0,0.00020821,2]
[326562627,1715109082559,-500.0,0.00020821,2]
[326562628,1715109082568,-1409.45,0.00020821,2]
[326562629,1715109082577,-500.0,0.00020821,2]
[326562630,1715109082586,-500.0,0.00020821,2]
[326562631,1715109082595,-500.0,0.00020821,2]
[326562632,1715109082609,-500.0,0.00020821,2]
[326562633,1715109082619,-1020.83,0.00020821,2]
[326562634,1715109082628,-500.0,0.00020821,2]
[326562635,1715109082637,-500.0,0.00020821,2]
[326562636,1715109082647,-500.0,0.00020821,2]
[326562637,1715109082656,-500.0,0.00020821,2]
[326562638,1715109082665,-1414.86,0.00020821,2]
[326562639,1715109082674,-500.0,0.00020821,2]
[326562640,1715109082686,-500.0,0.00020821,2]
[326562641,1715109082695,-500.0,0.00020821,2]
[326562642,1715109082704,-731.07,0.00020821,2]
[326562643,1715109082713,-500.0,0.00020821,2]
[326562644,1715109082723,-500.0,0.00020821,2]
[326562645,1715109082732,-711.26,0.00020821,2]
[326562646,1715109082741,-349.35808216,0.00020821,2]
[326562647,1715109082750,-1013.61,0.00020821,2]
[326562648,1715109082759,-217.7428758,0.00020821,2]
[326562649,1715109082768,-500.0,0.00020821,2]
[326562650,1715109082777,-500.0,0.00020821,2]
[326562651,1715109082786,-500.0,0.00020821,2]
[326562652,1715109082796,-735.22,0.00020821,2]
[326562653,1715109082806,-500.0,0.00020821,2]
[326562654,1715109082816,-1169.14,0.00020821,2]
[326562655,1715109082825,-544.24,0.00020821,2]
[326562656,1715109082834,-1704.43,0.00020821,2]
[326562657,1715109082843,-500.0,0.00020821,2]
[326562658,1715109082853,-500.0,0.00020821,2]
[326562659,1715109082863,-538.08,0.00020821,2]
[326562660,1715109082872,-500.0,0.00020821,2]
[326562661,1715109082881,-557.71,0.00020821,2]
[326562662,1715109082891,-500.0,0.00020821,2]
[326562663,1715109082901,-850.54,0.00020821,2]
[326562664,1715109082911,-500.0,0.00020821,2]
[326562665,1715109082920,-500.0,0.00020821,2]
[326562666,1715109082931,-949.21,0.00020821,2]
[326562667,1715109082940,-224.63089266,0.00020821,2]
[326562668,1715109082949,-718.44,0.00020821,2]
[326562669,1715109082959,-4821.02,0.00020821,2]
[326562670,1715109082968,-500.0,0.00020821,2]
[326562671,1715109082977,-500.0,0.00020821,2]
[326562672,1715109082986,-1209.89,0.00020821,2]
[326562673,1715109082996,-521.54,0.00020821,2]
[326562674,1715109083005,-500.0,0.00020821,2]
[326562675,1715109083014,-717.93,0.00020821,2]
[326562676,1715109083025,-500.0,0.00020821,2]
[326562677,1715109083033,-500.0,0.00020821,2]
[326562678,1715109083042,-500.0,0.00020821,2]
[326562679,1715109083051,-500.0,0.00020821,2]
[326562680,1715109083061,-533.96,0.00020821,2]
[326562681,1715109083071,-928.47,0.00020821,2]
[326562682,1715109083081,-857.36,0.00020821,2]
[326562683,1715109083090,-532.62,0.00020821,2]
[326562684,1715109083099,-2333.84,0.00020821,2]
[326562685,1715109083109,-678.25,0.00020821,2]
[326562686,1715109083118,-1851.61,0.00020821,2]
[326562687,1715109083127,-563.87,0.00020821,2]
[326562688,1715109083137,-500.0,0.00020821,2]
[326562689,1715109083146,-547.36,0.00020821,2]
[326562690,1715109083155,-753.1,0.00020821,2]
[326562691,1715109083165,-500.0,0.00020821,2]
[326562692,1715109083174,-500.0,0.00020821,2]
[326562693,1715109083183,-574.50124683,0.00020821,2]
[326562694,1715109083193,-500.0,0.00020821,2]
[326562695,1715109083203,-1246.61,0.00020821,2]
[326562696,1715109083213,-1396.46,0.00020821,2]
[326562697,1715109083222,-523.32,0.00020821,2]
[326562698,1715109083232,-1051.16,0.00020821,2]
[326562699,1715109083241,-1222.09,0.00020821,2]
[326562700,1715109083250,-500.0,0.00020821,2]
[326562701,1715109083259,-500.0,0.00020821,2]
[326562702,1715109083271,-1099.92,0.00020821,2]
[326562703,1715109083280,-3883.49,0.00020821,2]
[326562704,1715109083289,-500.0,0.00020821,2]
[326562705,1715109083299,-500.0,0.00020821,2]
[326562706,1715109083309,-500.0,0.00020821,2]
[326562707,1715109083318,-500.0,0.00020821,2]
[326562708,1715109083328,-500.0,0.00020821,2]
[326562709,1715109083337,-500.0,0.00020821,2]
[326562710,1715109083347,-798.3,0.00020821,2]
[326562711,1715109083356,-500.0,0.00020821,2]
[326562712,1715109083366,-595.95873293,0.00020821,2]
[326562713,1715109083375,-1024.08,0.00020821,2]
[326562714,1715109083385,-500.0,0.00020821,2]
[326562715,1715109083394,-500.0,0.00020821,2]
[326562716,1715109083404,-500.0,0.00020821,2]
[326562717,1715109083415,-3726.27,0.00020821,2]
[326562718,1715109083424,-572.78,0.00020821,2]
[326562719,1715109083435,-500.0,0.00020821,2]
[326562720,1715109083444,-500.0,0.00020821,2]
[326562721,1715109083454,-500.0,0.00020821,2]
[326562722,1715109083465,-500.0,0.00020821,2]
[326562723,1715109083475,-500.0,0.00020821,2]
[326562724,1715109083485,-500.0,0.00020821,2]
[326562725,1715109083495,-1075.66,0.00020821,2]
[326562726,1715109083504,-500.0,0.00020821,2]
[326562727,1715109083514,-1074.47,0.00020821,2]
[326562728,1715109083526,-614.33,0.00020821,2]
[326562729,1715109083535,-1390.99,0.00020821,2]
[326562730,1715109083545,-500.0,0.00020821,2]
[326562731,1715109083555,-1067.93,0.00020821,2]
[326562732,1715109083565,-500.0,0.00020821,2]
[326562733,1715109083574,-828.77,0.00020821,2]
[326562734,1715109083584,-931.21,0.00020821,2]
[326562735,1715109083595,-500.0,0.00020821,2]
[326562736,1715109083606,-500.0,0.00020821,2]
[326562737,1715109083618,-500.57,0.00020821,2]
[326562738,1715109083627,-500.0,0.00020821,2]
[326562739,1715109083636,-500.0,0.00020821,2]
[326562740,1715109083646,-500.0,0.00020821,2]
[326562741,1715109083656,-544.9,0.00020821,2]
[326562742,1715109083666,-500.0,0.00020821,2]
[326562743,1715109083675,-793.32,0.00020821,2]
[326562744,1715109083684,-500.0,0.00020821,2]
[326562745,1715109083695,-1001.63,0.00020821,2]
[326562746,1715109083705,-500.0,0.00020821,2]
[326562747,1715109083714,-659.12,0.00020821,2]
[326562748,1715109083724,-500.0,0.00020821,2]
[326562749,1715109083734,-500.0,0.00020821,2]
[326562750,1715109083743,-500.0,0.00020821,2]
[326562751,1715109083752,-876.42,0.00020821,2]
[326562752,1715109083762,-500.0,0.00020821,2]
[326562753,1715109083771,-500.0,0.00020821,2]
[326562754,1715109083781,-1592.65,0.00020821,2]
[326562755,1715109083793,-1382.91,0.00020821,2]
[326562756,1715109083803,-575.18,0.00020821,2]
[326562757,1715109083813,-676.71,0.00020821,2]
[326562758,1715109083823,-281.33042617,0.00020821,2]
[326562759,1715109083833,-677.53,0.00020821,2]
[326562760,1715109083843,-892.36,0.00020821,2]
[326562761,1715109083853,-809.83,0.00020821,2]
[326562762,1715109083863,-798.52,0.00020821,2]
[326562763,1715109083874,-500.0,0.00020821,2]
[326562764,1715109083883,-540.05,0.00020821,2]
[326562765,1715109083893,-712.06,0.00020821,2]
[326562766,1715109083903,-2338.12,0.00020821,2]
[326562767,1715109083912,-500.0,0.00020821,2]
[326562768,1715109083922,-627.88,0.00020821,2]
[326562769,1715109083931,-582.92,0.00020821,2]
[326562770,1715109083941,-1209.49,0.00020821,2]
[326562771,1715109083952,-500.0,0.00020821,2]
[326562772,1715109083962,-500.0,0.00020821,2]
[326562773,1715109083972,-624.93,0.00020821,2]
[326562774,1715109083981,-500.0,0.00020821,2]
[326562775,1715109083991,-506.15,0.00020821,2]
[326562776,1715109084001,-1481.7,0.00020821,2]
[326562777,1715109084011,-500.0,0.00020821,2]
[326562778,1715109084020,-500.0,0.00020821,2]
[326562779,1715109084031,-500.0,0.00020821,2]
[326562780,1715109084041,-803.02,0.00020821,2]
[326562781,1715109084051,-1227.85,0.00020821,2]
[326562782,1715109084061,-541.87,0.00020821,2]
[326562783,1715109084072,-532.75,0.00020821,2]
[326562784,1715109084082,-1085.64,0.00020821,2]
[326562785,1715109084092,-563.22,0.00020821,2]
[326562786,1715109084102,-500.0,0.00020821,2]
[326562787,1715109084112,-1105.8,0.00020821,2]
[326562788,1715109084122,-500.0,0.00020821,2]
[326562789,1715109084132,-979.3,0.00020821,2]
[326562790,1715109084142,-5700.1,0.00020821,2]
[326562791,1715109084152,-500.0,0.00020821,2]
[326562792,1715109084162,-288.60422279,0.00020821,2]
[326562793,1715109084172,-1106.3,0.00020821,2]
[326562794,1715109084182,-1297.44,0.00020821,2]
[326562795,1715109084191,-500.0,0.00020821,2]
[326562796,1715109084201,-1432.86,0.00020821,2]
[326562797,1715109084211,-500.0,0.00020821,2]
[326562798,1715109084222,-1779.56,0.00020821,2]
[326562799,1715109084232,-500.0,0.00020821,2]
[326562800,1715109084242,-748.56,0.00020821,2]
[326562801,1715109084252,-4338.05,0.00020821,2]
[326562802,1715109084262,-2714.86,0.00020821,2]
[326562803,1715109084272,-500.0,0.00020821,2]
[326562804,1715109084282,-500.0,0.00020821,2]
[326562805,1715109084292,-501.29,0.00020821,2]
[326562806,1715109084302,-2987.38,0.00020821,2]
[326562807,1715109084312,-1534.13,0.00020821,2]
[326562808,1715109084322,-1056.34,0.00020821,2]
[326562809,1715109084331,-896.06,0.00020821,2]
[326562810,1715109084341,-1535.14,0.00020821,2]
[326562811,1715109084351,-500.0,0.00020821,2]
[326562812,1715109084361,-500.0,0.00020821,2]
[326562813,1715109084370,-500.0,0.00020821,2]
[326562814,1715109084380,-1016.39,0.00020821,2]
[326562815,1715109084390,-500.0,0.00020821,2]
[326562816,1715109084400,-333.75193491,0.00020821,2]
[326562817,1715109084410,-839.24,0.00020821,2]
[326562818,1715109084420,-3365.77,0.00020821,2]
[326562819,1715109084430,-17937.6,0.00020821,2]
[326562820,1715109084439,-500.0,0.00020821,2]